Cogmind - Beta 14 @@@ ROGUE MODE // 2025.03.23 @ 21:01:55 // Winter2019/RPGLIKE Player: Lava Result: Destroyed by as-97314 with Assembled Maul Performance ------------- Evolutions (1) 500 Regions Visited (4) 800 Robots Destroyed (61) 305 Value Destroyed (1745) 1745 Prototype IDs (3) 60 Alien Tech Used (0) 0 Bonus (-2) -2 TOTAL SCORE: 3408 Bonus ------- Friendly Fire -2 Cogmind --------- Core Integrity 0/600 Matter 239/300 Energy 160/160 System Corruption 3% Temperature Cool (0) Movement Treading (170) Location -9/Mines Parts ------- > --- POWER (1) -------- Light Nuclear Core > --- PROPULSION (2) --- Armored Treads Armored Treads > --- UTILITY (5) ------ Signal Interpreter ECM Suite Hacking Suite System Shield > --- WEAPON (2) ------- High-powered Shotgun Grenade Launcher > --- INVENTORY (2) ---- Improved Assault Rifle Maul Peak State ------------ > --- POWER ------------ Light Nuclear Core > --- PROPULSION ------- Armored Treads Armored Treads > --- UTILITY ---------- Signal Interpreter ECM Suite Hacking Suite Hacking Suite System Shield > --- WEAPON ----------- Improved Assault Rifle High-powered Shotgun > --- INVENTORY -------- Grenade Launcher [Rating: 26] Favorites ----------- Power Light Nuclear Core Engine Ion Engine Power Core Light Nuclear Core Propulsion Armored Treads Treads Armored Treads Flight Unit Improved Flight Unit Utility Hacking Suite Device ECM Suite Processor Signal Interpreter Hackware Hacking Suite Weapon Heavy Assault Rifle Ballistic Gun Heavy Assault Rifle Launcher Grenade Launcher Impact Weapon Maul Build | -11 -10 -10 -9 -9 ------- Run | Yrd Mat Min Mat Min Slots Evolved 6 | 3 1 . 2 . Power . | . . . . . Propulsion 1 | 1 . . . . Utility 4 | 1 1 . 2 . Weapon 1 | 1 . . . . Parts Attached 29 | 5 8 2 13 1 Power 2 | 1 1 . . . Engine 1 | 1 . . . . Core 1 | . 1 . . . Reactor . | . . . . . Propulsion 6 | 2 . . 4 . Treads 5 | 2 . . 3 . Leg . | . . . . . Wheel . | . . . . . Hover . | . . . . . Flight 1 | . . . 1 . Utility 6 | . 4 . 2 . Device 2 | . 2 . . . Storage . | . . . . . Processor 1 | . . . 1 . Hackware 3 | . 2 . 1 . Protection . | . . . . . Artifact . | . . . . . Weapon 15 | 2 3 2 7 1 Energy Gun . | . . . . . Energy Cannon . | . . . . . Ballistic Gun 11 | 2 3 1 5 . Ballistic Cannon . | . . . . . Launcher 2 | . . 1 . 1 Special Weapon . | . . . . . Impact Weapon 2 | . . . 2 . Slashing Weapon . | . . . . . Piercing Weapon . | . . . . . Special Melee Weapon . | . . . . . Unidentified Prototypes 2 | . . . 2 . Parts Lost 1 | . . . . 1 Power . | . . . . . Propulsion . | . . . . . Utility 1 | . . . . 1 Weapon . | . . . . . Highest Loss Streak 1 | . . . . 1 To Critical Strikes . | . . . . . Average Slot Usage (%) 98 | . 96 100 99 99 Engine 3 | . 11 . . . Core 8 | . 1 12 10 10 Treads 23 | . 27 25 20 20 Device 12 | . 18 12 10 10 Processor 4 | . . . 6 10 Hackware 23 | . 7 25 30 29 Ballistic Gun 23 | . 27 24 20 19 Peak Build Rating 26 | 5 16 16 26 26 Average Rating 19 | 4 9 15 24 25 On Entrance 12 | . 5 16 16 26 Naked Turns . | . . . . . Heaviest Build 14 | 8 14 13 13 13 Greatest Support 40 | 40 40 40 40 40 Greatest Overweight (x) . | . . . . . Average Overweight (x) . | . . . . . Largest Inventory Capacity 2 | 1 1 1 2 2 Average Capacity 1 | 1 1 1 1 2 Most Carried 2 | 1 1 1 2 2 Average Carried 1 | . . 1 1 2 Final Capacity 2 | 1 1 1 2 2 Final Carried 2 | 1 1 1 2 2 Class Distribution -------------------- 76% | Hacker-Mutant 15% | Mutant 8% | Infiltrator-Mutant Dominant Class ---------------- Mutant | -10/Materials Hacker-Mutant | -10/Mines Hacker-Mutant | -9/Materials Hacker-Mutant | -9/Mines Resources | -11 -10 -10 -9 -9 ----------- Run | Yrd Mat Min Mat Min Matter Collected 1402 | 250 372 188 538 54 Remotely . | . . . . . Salvage Created 1592 | . 546 335 637 74 Parts 144 | . 43 13 82 6 Haulers Intercepted . | . . . . . Recyclers Shooed 1 | . . . 1 . Parts Field Recycled . | . . . . . Retrieved Matter . | . . . . . Parts Self-Destructed . | . . . . . Prevented . | . . . . . Kills | -11 -10 -10 -9 -9 ------- Run | Yrd Mat Min Mat Min Combat Hostiles Destroyed 59 | . 14 7 27 11 Guns 51 | . 14 7 27 3 AOE 8 | . . . . 8 Classes Destroyed 8 | . 3 2 3 . Tunneler 1 | . . 1 . . Operator 4 | . 2 . 2 . Watcher 6 | . 1 . 5 . Swarmer 14 | . . . 11 3 Grunt 25 | . 14 6 5 . Duelist 1 | . . . 1 . Sentry 10 | . . . 10 . Assembled 9 | . . 1 . 8 Best Kill Streak 8 | . 5 2 4 8 Combat Bots Only 8 | . 5 2 4 8 Max Kills in Single Turn 6 | . 1 1 2 6 Gunslinging 1 | . . . 1 . Exploded 6 | . . . . 6 Melee . | . . . . . Uniques/NPCs Destroyed . | . . . . . Combat | -11 -10 -10 -9 -9 -------- Run | Yrd Mat Min Mat Min Hostile Shots Fired 318 | . 98 47 113 60 Missed 92 | . 28 17 28 19 Damage Taken 3131 | . 875 487 1021 748 Core 2505 | . 696 390 819 600 Absorbed by Shields . | . . . . . Redirected to Core 2071 | . 561 314 677 519 Core Remaining (%) 78 | 100 . 57 . . Volleys Fired 161 | . 60 28 65 8 Largest 2 | . 2 2 2 2 Hottest 55 | . 46 53 48 55 Shots Fired 319 | . 120 56 127 16 Gun 312 | . 120 53 127 12 Cannon . | . . . . . Launcher 7 | . . 3 . 4 Special . | . . . . . Kinetic 312 | . 120 53 127 12 Thermal . | . . . . . Explosive 7 | . . 3 . 4 Electromagnetic . | . . . . . Robot Hit Streak 26 | . 10 12 21 26 Robot Miss Streak 6 | . 6 3 3 3 Penetration Max . | . . . . . Secondary Targets 5 | . 2 . 2 1 Max Gunslinging Chain 1 | . 1 . 1 1 Shots Hit Robots 224 | . 75 37 98 14 Core Hits 123 | . 33 16 54 20 Critical Kills 1 | . 1 . . . Critical Parts Destroyed . | . . . . . Critical Strikes 1 | . 1 . . . Destroy 1 | . 1 . . . Melee Attacks 2 | . . . 2 . Impact 2 | . . . 2 . Slashing . | . . . . . Piercing . | . . . . . Sneak Attacks . | . . . . . Combat Hostiles . | . . . . . Follow-up Attacks . | . . . . . Damage Inflicted 3947 | . 917 633 1654 743 Guns 3336 | . 917 568 1636 215 Cannons . | . . . . . Explosions 588 | . . 63 . 525 Melee . | . . . . . Ramming 23 | . . 2 18 3 Kinetic 3336 | . 917 568 1636 215 Thermal . | . . . . . Explosive 588 | . . 63 . 525 Electromagnetic . | . . . . . Impact . | . . . . . Slashing . | . . . . . Piercing . | . . . . . Highest Corruption 3 | . . . . 3 Average Corruption 3 | . . . . 3 Corruption Purged . | . . . . . Corruption Blocked . | . . . . . Overload Shots . | . . . . . Overflow Damage 18 | . . . . 18 Projectiles . | . . . . . Explosions 18 | . . . . 18 Melee . | . . . . . Knockbacks . | . . . . . Impact . | . . . . . Kinetic . | . . . . . Secondary . | . . . . . Self-Inflicted Damage 110 | . . 105 . 5 Shots 4 | . . 3 . 1 Rammed 8 | . . 1 6 1 Targets Rammed 8 | . . 1 6 1 Kicked . | . . . . . Crushed . | . . . . . Highest Temperature 40 | . 40 18 31 . Average Temperature 9 | . 10 6 10 . Received Heat Transfer 1044 | . 510 168 366 . Siege Activations . | . . . . . Robots Corrupted . | . . . . . Combat Hostiles . | . . . . . Parts Fried . | . . . . . Impact Corruptions . | . . . . . Robots Melted . | . . . . . Combat Hostiles . | . . . . . Parts Melted . | . . . . . Heat Transferred . | . . . . . Parts Sabotaged . | . . . . . Parts Stolen . | . . . . . Parts Stripped . | . . . . . Power Chain Reactions . | . . . . . Alert | -11 -10 -10 -9 -9 ------- Run | Yrd Mat Min Mat Min Peak Influence 251 | . 224 138 251 207 Initial 93 | . . 43 . 93 Average 98 | . 81 50 116 145 Maximum Alert Level 1 | . 1 . 1 1 Low Security (%) 93 | 100 92 100 92 96 Level 1 6 | . 7 . 7 3 Level 2 . | . . . . . Level 3 . | . . . . . Level 4 . | . . . . . Level 5 . | . . . . . High Security . | . . . . . Max Security . | . . . . . Squads Dispatched 4 | . 2 . 2 . Investigation 1 | . . . 1 . Extermination . | . . . . . Reinforcement 3 | . 2 . 1 . Assault . | . . . . . Garrison . | . . . . . Intercept . | . . . . . Searches Triggered . | . . . . . Construction Impeded . | . . . . . Haulers Reinforced . | . . . . . Active Scanning Responses . | . . . . . Cargo Convoy Interrupts . | . . . . . Stealth | -11 -10 -10 -9 -9 --------- Run | Yrd Mat Min Mat Min Distress Signals 2 | . . . 2 . Communications Jammed . | . . . . . Distress Signals . | . . . . . Times Spotted 95 | . 23 12 39 21 Peak Tracking Total 18 | . 4 3 4 18 Tactical Retreats 11 | . 3 4 4 . Traps | -11 -10 -10 -9 -9 ------- Run | Yrd Mat Min Mat Min Traps Triggered 2 | . 1 . 1 . Indirectly . | . . . . . Trap Hack Attempts . | . . . . . Triggered . | . . . . . Disarmed 3 | . . . 3 . Reprogrammed . | . . . . . Reused . | . . . . . Traps Extracted . | . . . . . Installed . | . . . . . Triggered . | . . . . . Machines | -11 -10 -10 -9 -9 ---------- Run | Yrd Mat Min Mat Min Machines Disabled . | . . . . . Max in Single Turn . | . . . . . Machines Repaired . | . . . . . Machines Dismantled . | . . . . . Machines Sabotaged . | . . . . . Overloaded Fab Kills . | . . . . . Hacking | -11 -10 -10 -9 -9 --------- Run | Yrd Mat Min Mat Min Machines Accessed 17 | . 5 . 11 1 Terminals 15 | . 5 . 9 1 Fabricators . | . . . . . Repair Stations . | . . . . . Recycling Units . | . . . . . Scanalyzers 2 | . . . 2 . Garrison Access . | . . . . . Total Hacks 63 | . 10 . 49 4 Successful 37 | . 3 . 32 2 Failed 25 | . 7 . 16 2 Catastrophic 5 | . . . 4 1 Database Lockouts 1 | . . . 1 . Manual 21 | . 4 . 13 4 Terminals 57 | . 10 . 43 4 Fabricators . | . . . . . Repair Stations . | . . . . . Recycling Units . | . . . . . Scanalyzers 6 | . . . 6 . Garrison Access . | . . . . . Terminal Hacks 31 | . 3 . 26 2 Record 11 | . . . 11 . Part Schematic 1 | . . . 1 . Prototype ID Bank 1 | . . . 1 . Level Access Points 1 | . . . . 1 Branch Access Points 1 | . . . . 1 Alert Level 3 | . . . 3 . Unreport Threat 2 | . 1 . 1 . Disarm Traps 1 | . . . 1 . Dispatch Records 1 | . . . 1 . Security Status 1 | . . . 1 . Hauler Manifests 4 | . 1 . 3 . Registered Components 1 | . . . 1 . Zone Layout 3 | . 1 . 2 . Fabricator Hacks . | . . . . . Repair Station Hacks . | . . . . . Recycling Unit Hacks . | . . . . . Scanalyzer 6 | . . . 6 . Insert Component 3 | . . . 3 . Analyze 3 | . . . 3 . Garrison Access Hacks . | . . . . . Unauthorized Hacks . | . . . . . Terminals . | . . . . . Fabricators . | . . . . . Repair Stations . | . . . . . Recycling Units . | . . . . . Scanalyzers . | . . . . . Garrison Access . | . . . . . Data Cores Recovered 1 | . . . 1 . Used . | . . . . . Hacking Detections 14 | . 5 . 8 1 Full Trace Events . | . . . . . Feedback Events . | . . . . . Feedback Blocked . | . . . . . Robot Schematics Acquired . | . . . . . Robots Built . | . . . . . Authchips . | . . . . . Time . | . . . . . Total Robot Build Rating . | . . . . . Part Schematics Acquired 4 | . . . 4 . Parts Built . | . . . . . Authchips . | . . . . . Time . | . . . . . Total Part Build Rating . | . . . . . Parts Repaired . | . . . . . Time . | . . . . . Parts Recycled . | . . . . . Recycled Matter . | . . . . . Retrieved Matter . | . . . . . Retrieved Components . | . . . . . Parts Scanalyzed 3 | . . . 3 . Part Schematics Acquired 3 | . . . 3 . Parts Damaged . | . . . . . Bothacking | -11 -10 -10 -9 -9 ------------ Run | Yrd Mat Min Mat Min Used RIF Installer . | . . . . . Robots Hacked . | . . . . . Non-combat . | . . . . . Combat . | . . . . . Robot Hacks Applied . | . . . . . Relay Couplers Released . | . . . . . Fabnet Peak Effective % . | . . . . . Robots Rewired . | . . . . . Allies Hacked . | . . . . . Hacks Repelled . | . . . . . Allies | -11 -10 -10 -9 -9 -------- Run | Yrd Mat Min Mat Min Total Allies 3 | . . . . 3 Largest Group 3 | . . . . 3 Highest-Rated Group 40 | . . . . 40 Highest-Rated Ally 16 | . . . . 16 Total Orders . | . . . . . Ally Attacks 16 | . . . . 16 Total Damage 189 | . . . . 189 Kills 3 | . . . . 3 Allies Corrupted . | . . . . . Allies Melted . | . . . . . Intel | -11 -10 -10 -9 -9 ------- Run | Yrd Mat Min Mat Min Robot Analysis Total . | . . . . . Derelict Logs Recovered 2 | . . 1 . 1 Drone Launches . | . . . . . Drone Recoveries . | . . . . . Exploration | -11 -10 -10 -9 -9 ------------- Run | Yrd Mat Min Mat Min Turns Passed 5319 | 74 1354 801 2707 383 Spaces Moved 2776 | 46 689 429 1402 210 Core 6 | 6 . . . . Treads 2770 | 40 689 429 1402 210 Legs . | . . . . . Wheels . | . . . . . Hover . | . . . . . Flight . | . . . . . Fastest Speed 50 | 50 160 160 160 170 Average Speed 165 | 145 160 160 169 170 Slowest Speed 170 | 160 160 160 170 170 Overloaded Moves . | . . . . . Propulsion Burnouts . | . . . . . Robots Hopped . | . . . . . Cave-ins Triggered 1 | . . . . 1 Exploration Rate (%) 59 | 3 68 82 94 49 Regions Visited 4 Branch Regions 2 Pre-discovered Areas 1 | . . . . 1 Known Exits Taken 1 | . . . 1 . Unknown Exits Taken 3 | 1 1 1 . . Scrap Searched 1 | . . 1 . . Spaces Dug 2 | . . . 2 . Terrain Destroyed 39 | . . 16 2 21 Melee 2 | . . . 2 . Projectile . | . . . . . AOE 37 | . . 16 . 21 Terrain Rammed . | . . . . . Walls Destroyed . | . . . . . Machines Disabled . | . . . . . Actions | -11 -10 -10 -9 -9 --------- Run | Yrd Mat Min Mat Min Total 3188 | 51 827 486 1604 220 Wait 86 | . 31 17 38 . Move 2772 | 45 688 428 1401 210 Hop . | . . . . . Pick Up 10 | 1 3 . 6 . Fast Attach 11 | 5 2 . 4 . Attach 2 | . 1 . 1 . Detach . | . . . . . Swap 16 | . 5 2 8 1 Drop 15 | . 4 . 11 . Fire 161 | . 60 28 65 8 Melee 2 | . . . 2 . Ram . | . . . . . Kick . | . . . . . Crush 8 | . . 1 6 1 Escape Stasis . | . . . . . Rewire . | . . . . . Trap . | . . . . . Miscellaneous 105 | . 33 10 62 . Route ------- -11/Scrapyard -10/Materials (discovered 3 exits: *Mat / [*Min x2]) -10/Mines -9/Materials (discovered 4 exits: *Mat x3 / *Min) -9/Mines (discovered 2 exits: Mat x2) History --------- Turn | Location | Event 1 | -11/Scrapyard | Upgraded with Propulsion slot (x1) 1 | -11/Scrapyard | Upgraded with Utility slot (x1) 1 | -11/Scrapyard | Upgraded with Weapon slot (x1) 13 | -11/Scrapyard | Discovered new exit (range 16) 75 | -11/Scrapyard | Entered Materials 98 | -10/Materials | Discovered new exit (range 13) 304 | -10/Materials | Build established: Mutant 441 | -10/Materials | Discovered new exit (range 14) 710 | -10/Materials | Build established: Infiltrator-Mutant 767 | -10/Materials | Discovered new exit (range 9) 1157 | -10/Materials | Build established: Mutant 1242 | -10/Materials | Reached level 2 1277 | -10/Materials | Upgraded with Utility slot (x1) 1429 | -10/Materials | Entered Mines 1583 | -10/Mines | Build established: Hacker-Mutant 1695 | -10/Mines | Joined a pair of Derelicts in attacking an 0b10 outpost 1914 | -10/Mines | Learned Materials interactive machine intel 1973 | -10/Mines | Discovered new exit (range 9) 2107 | -10/Mines | Excavation squad dispatched 2107 | -10/Mines | A large section of the Mines collapsed 2172 | -10/Mines | Core integrity fell below 50% 2230 | -10/Mines | Entered Materials 2231 | -9/Materials | Loaded intel: 18 interactive machine locations 2232 | -9/Materials | Reached level 3 2308 | -9/Materials | Core integrity fell below 50% 2309 | -9/Materials | Reached level 4 2319 | -9/Materials | Upgraded with Utility slot (x1) 2949 | -9/Materials | Discovered new exit (range 15) 3147 | -9/Materials | Reached level 5 3162 | -9/Materials | Discovered new exit (range 16) 3172 | -9/Materials | Upgraded with Utility slot (x1) 3287 | -9/Materials | Identified exit to Materials 3635 | -9/Materials | Central database locked down 3749 | -9/Materials | Identified exit to Mines 4031 | -9/Materials | Discovered exit to Materials (range 11) 4174 | -9/Materials | Reached level 6 4650 | -9/Materials | Discovered exit to Materials (range 16) 4937 | -9/Materials | Entered Mines 4944 | -9/Mines | Met a Derelict bent on vengeance 4953 | -9/Mines | Learned 4 Materials zone layouts 4976 | -9/Mines | Learned location of Storage (-8) 5084 | -9/Mines | Reached level 7 5261 | -9/Mines | Assisted by bots powering up and referring to "LRC-V3" 5297 | -9/Mines | Assembled infested the area 5317 | -9/Mines | Crushed by falling debris 5317 | -9/Mines | Core integrity fell below 20% 5320 | -9/Mines | Destroyed by as-97314 with Assembled Maul Last Messages --------------- 05309_ as-00282 destroyed. 05309_ as-52601 destroyed. 05309_ as-25373 destroyed. 05309_ as-07520 destroyed. 05309_ as-07319 destroyed. 05310_ as-89715 destroyed. 05313_ U-05 Engineer builds a Wall. 05315_ R-06 Scavenger collects Sml. Matter Pod. 05316_ Trooper 2a destroyed. 05316_ U-05 Engineer lays Concrete. 05317_ The unstable cave ceiling collapses. 05317_ Crushed by falling debris. 05317_ Hacking Suite destroyed. 05317_ System corrupted by crushing effect (+3). 05317_ Slammed into as-84853. 05318_ as-19711 destroyed. 05318_ U-05 Engineer builds a Wall. 05318_ R-06 Scavenger collects Particle Gun. 05319_ as-44383 destroyed. 05319_ as-83857 destroyed. Map ----- +----------------------------------------------------+ | #??#####??## ##?????????????????? # | | #?????##### #??????????????????? ## | | #######?????# #???????????????????##? | | ???????????# ##x #?????????????????????? | | ???????????## ##### ##?????????????????????? | | ????????????## ###???#x ##?????????????????????? | | ?????????????###?????## #?????????????????????? | | ?????????????????????# #?????????????????????? | | ?????????????????????# ##?????????????????????? | | ????????????????????## ##??????????????????????? | | ?????????????????#### #???????????????????????? | | ????????????????## ##???????????????????????? | | ????????????????# ##????????????????????????? | | ????????????????# ##???????X????????????????? | | ????????????????## ###??????????????????????? | | ?????????????????## ##?????????????????????? | | ????????????????#### ##????????????????????? | | ????????????????# #????????????????????? | | ????????????????# ##???????????????????? | | ????????????????# #???????????????????? | | ????????????????### #???????????????????? | | ?????????????????# ##r ##???????????????????? | | ????????????????## ###ug##????????????????????? | | ?????????